bitfinex/quotes_BTCUSD_20230901
["timestamp","ask_amount","ask_price","bid_price","bid_amount"]
[1693588729011,0.69558293,25633.0,25632.0,0.026695]
[1693588729222,0.08534074,25633.0,25632.0,0.026695]
[1693588729646,0.073,25633.0,25632.0,0.026695]
[1693588729864,0.072381,25633.0,25632.0,0.92446351]
[1693588730065,0.037,25633.0,25632.0,1.10441216]
[1693588731092,0.037,25633.0,25632.0,1.10641216]
[1693588731343,0.059,25633.0,25632.0,1.10641216]
[1693588731546,0.022,25633.0,25632.0,1.10341216]
[1693588731979,0.024,25633.0,25632.0,0.37859791]
[1693588732194,0.36282254,25633.0,25632.0,0.045695]
[1693588732413,0.65400118,25633.0,25632.0,0.045695]
[1693588732616,0.63200118,25633.0,25632.0,0.043695]
[1693588733025,0.63600118,25633.0,25632.0,0.079695]
[1693588733229,0.6612404,25633.0,25632.0,0.079695]
[1693588733433,0.6572404,25633.0,25632.0,0.043695]
[1693588733893,0.42342752,25633.0,25632.0,0.045695]
[1693588734101,0.03434074,25633.0,25632.0,0.021695]
[1693588734311,0.04934074,25633.0,25632.0,0.022695]
[1693588734571,0.04934074,25633.0,25623.0,0.0311096]
[1693588734572,0.01234074,25628.0,25623.0,0.0311096]
[1693588734779,0.01234074,25628.0,25620.0,0.2205]
[1693588734780,0.51533566,25628.0,25620.0,0.2205]
[1693588735001,0.49533566,25628.0,25618.0,0.09994411]
[1693588735204,0.51533566,25628.0,25619.0,0.2205]
[1693588735405,0.41942752,25628.0,25619.0,0.2205]
[1693588736051,0.58332752,25628.0,25619.0,0.2205]
[1693588736299,0.56332752,25628.0,25619.0,0.2205]
[1693588736506,0.01234074,25628.0,25622.0,0.09994411]
[1693588736720,0.01234074,25628.0,25624.0,0.03878336]
[1693588736952,0.036,25628.0,25627.0,0.1550873]
[1693588737156,0.035877,25628.0,25627.0,0.87586998]
[1693588737361,0.004,25628.0,25627.0,0.87586998]
[1693588737595,0.01,25630.0,25627.0,0.4887832]
[1693588737799,0.036,25628.0,25627.0,0.35005573]
[1693588737952,0.072,25628.0,25627.0,0.35005573]
[1693588738160,0.036,25628.0,25627.0,0.44999984]
[1693588738359,0.038,25628.0,25627.0,0.44999984]
[1693588739190,0.036,25628.0,25627.0,0.35005573]
[1693588739390,0.01,25630.0,25627.0,0.14999984]
[1693588739601,0.01,25630.0,25628.0,0.34499998]
[1693588740206,0.01,25630.0,25628.0,0.38378334]
[1693588741060,0.024,25630.0,25628.0,0.38378334]
[1693588741262,0.024,25630.0,25628.0,0.38778334]
[1693588741263,0.026,25630.0,25628.0,0.38778334]
[1693588741433,0.026,25630.0,25629.0,0.069098]
[1693588741434,0.012,25630.0,25629.0,0.069098]
[1693588741666,0.013,25630.0,25629.0,0.069098]
[1693588742482,0.01,25632.0,25629.0,0.069098]
[1693588742686,0.01,25634.0,25631.0,0.01994411]
[1693588742889,0.01,25634.0,25632.0,0.54192149]
[1693588743094,0.01,25635.0,25632.0,0.54192149]
[1693588743520,0.01,25635.0,25632.0,0.38708678]
[1693588744379,0.082,25635.0,25633.0,0.3]
[1693588744596,0.03582,25635.0,25633.0,0.68708678]
[1693588744801,0.03582,25635.0,25634.0,0.07688143]
[1693588745005,0.03982,25635.0,25634.0,0.07688143]
[1693588745209,0.03582,25635.0,25634.0,0.07688143]
[1693588745413,0.02017,25635.0,25634.0,0.46396821]
[1693588745620,0.002,25635.0,25634.0,0.76396821]
[1693588745830,0.004,25635.0,25634.0,0.76396821]
[1693588746043,0.004,25635.0,25634.0,1.00696821]
[1693588746449,0.01,25636.0,25634.0,1.00696821]
[1693588746656,0.01,25639.0,25635.0,0.79797801]
[1693588746867,0.01,25636.0,25635.0,0.95281272]
[1693588747078,0.01,25636.0,25635.0,0.79797801]
[1693588747289,0.01,25637.0,25635.0,0.79797801]
[1693588747719,0.014,25636.0,25635.0,0.79797801]
[1693588747925,0.01,25636.0,25635.0,0.41089123]
[1693588748335,0.01933,25636.0,25635.0,0.89792212]
[1693588748673,0.02333,25636.0,25635.0,0.89792212]
[1693588749214,0.01933,25636.0,25635.0,0.41089123]
[1693588749404,0.03633,25636.0,25635.0,0.41289123]
[1693588749614,0.03633,25636.0,25635.0,0.79997801]
[1693588750019,0.023023,25636.0,25635.0,1.14292212]
[1693588750235,0.01,25639.0,25636.0,0.11376221]
[1693588750444,0.01,25640.0,25638.0,0.243]
[1693588750609,0.01,25640.0,25639.0,0.38708678]
[1693588750812,0.03,25655.0,25648.0,0.07994411]
[1693588751068,0.03,25655.0,25653.0,0.243]
[1693588751411,0.03,25655.0,25654.0,0.47913471]
[1693588751793,0.02,25655.0,25654.0,0.47913471]
[1693588752010,0.1807,25656.0,25654.0,0.47913471]
[1693588752220,0.0196,25656.0,25655.0,0.243]
[1693588752424,0.016652,25656.0,25655.0,1.08492149]
[1693588752623,0.016555,25656.0,25655.0,1.09494745]
[1693588753056,0.016555,25656.0,25655.0,0.44491656]
[1693588753235,0.016555,25656.0,25655.0,0.3]
[1693588753662,0.016555,25656.0,25655.0,0.326]
[1693588753663,0.018555,25656.0,25655.0,0.326]
[1693588753793,0.018555,25656.0,25655.0,0.43303089]
[1693588754001,0.018555,25656.0,25655.0,0.73303089]
[1693588754223,0.021555,25656.0,25655.0,0.74408678]
[1693588754425,0.018555,25656.0,25655.0,0.43989901]
[1693588754580,0.037555,25656.0,25655.0,0.302]
[1693588757032,0.047555,25656.0,25655.0,0.35969034]
[1693588757237,0.047555,25656.0,25655.0,0.44677712]
[1693588757452,0.019555,25656.0,25655.0,0.76577712]
[1693588757656,0.018555,25656.0,25655.0,0.75277712]
[1693588758072,0.020555,25656.0,25655.0,0.77877712]
[1693588758483,0.018555,25656.0,25655.0,0.75277712]
[1693588758685,0.018555,25656.0,25655.0,0.36569034]
[1693588758890,0.020555,25656.0,25655.0,0.39169034]
[1693588759714,0.14859574,25660.0,25655.0,0.39169034]
[1693588759915,0.14859574,25660.0,25656.0,0.51830374]
[1693588760132,0.14859574,25660.0,25656.0,0.90539052]
[1693588760338,0.14859574,25660.0,25656.0,1.14839052]
[1693588760543,0.14859574,25660.0,25656.0,0.99355581]
[1693588760946,0.18259574,25660.0,25656.0,0.99655581]
[1693588761151,0.18259574,25660.0,25657.0,0.12489558]
[1693588761986,0.19559574,25660.0,25657.0,0.12489558]
[1693588762407,0.18259574,25660.0,25657.0,0.12489558]
[1693588762844,0.18559574,25660.0,25657.0,0.12789558]
[1693588763055,0.22159574,25660.0,25657.0,0.13089558]
[1693588763258,0.22159574,25660.0,25658.0,0.11244514]
[1693588764082,0.18459574,25660.0,25658.0,0.11244514]
[1693588764287,0.14859574,25660.0,25658.0,0.11244514]
[1693588764489,0.18559574,25660.0,25658.0,0.003]
[1693588764689,0.22159574,25660.0,25658.0,0.006]
[1693588765510,0.22159574,25660.0,25659.0,0.243]
[1693588765511,0.073,25660.0,25659.0,0.243]
[1693588765726,0.073,25660.0,25659.0,0.93008678]
[1693588765930,0.073,25660.0,25659.0,1.03248746]
[1693588766138,0.073,25660.0,25659.0,1.75696628]
[1693588766364,1.1844,25672.0,25661.0,0.02]
[1693588766611,1.1844,25672.0,25661.0,0.95008678]
[1693588766833,1.1844,25672.0,25661.0,1.15525227]
[1693588766834,1.2574,25672.0,25661.0,1.15525227]
[1693588767253,1.2574,25672.0,25661.0,1.22107227]
[1693588767473,1.2574,25672.0,25661.0,1.22749227]
[1693588767676,1.2574,25672.0,25661.0,1.26557227]
[1693588767965,0.0226,25662.0,25661.0,1.26647227]
[1693588768234,0.0236,25662.0,25661.0,1.22925227]
[1693588768508,0.0236,25662.0,25661.0,1.24925227]
[1693588769714,0.0236,25662.0,25661.0,1.22925227]
[1693588770959,0.157,25671.0,25661.0,1.22925227]
[1693588771215,0.25290814,25671.0,25665.0,0.243]
[1693588771537,0.157,25671.0,25666.0,0.45483471]
[1693588772474,0.25290814,25671.0,25666.0,0.3]
[1693588772762,0.157,25671.0,25666.0,0.45483471]
[1693588773018,0.194,25671.0,25667.0,0.04548347]
[1693588773283,0.157,25671.0,25667.0,0.04548347]
[1693588773581,0.157,25671.0,25667.0,0.20031818]
[1693588773582,0.194,25671.0,25667.0,0.20031818]
[1693588774135,0.204,25671.0,25667.0,0.04548347]
[1693588774412,0.167,25671.0,25667.0,0.04548347]
[1693588774683,0.167,25671.0,25667.0,0.04848347]
[1693588774684,0.38708678,25670.0,25667.0,0.04848347]
[1693588774957,0.48299492,25670.0,25667.0,0.05148347]
[1693588775216,0.38708678,25670.0,25667.0,0.05148347]
[1693588775560,0.38708678,25670.0,25668.0,0.03514835]
[1693588775845,0.38708678,25670.0,25667.0,0.006]
[1693588776095,0.38708678,25670.0,25667.0,0.003]
[1693588776358,0.42408678,25670.0,25667.0,0.003]
[1693588776607,0.42408678,25670.0,25662.0,0.3]
[1693588776608,0.38708678,25670.0,25662.0,0.3]
[1693588777075,0.09590814,25669.0,25668.0,0.003]
[1693588777275,0.39708678,25670.0,25667.0,0.003]
[1693588777513,0.38708678,25670.0,25662.0,0.45483471]
[1693588777721,0.25380814,25669.0,25663.0,0.07178347]
[1693588777922,0.25380814,25669.0,25667.0,0.003]
[1693588778146,0.1579,25669.0,25667.0,0.003]
[1693588779158,0.1579,25669.0,25665.0,0.2326]
[1693588779374,0.1579,25669.0,25666.0,0.543]
[1693588779578,0.1579,25669.0,25667.0,0.11626868]
[1693588779750,0.1679,25669.0,25668.0,0.3]
[1693588779956,0.2049,25669.0,25668.0,0.3]
[1693588780162,0.1579,25669.0,25668.0,0.3]
[1693588780563,0.2049,25669.0,25668.0,0.3]
[1693588780765,0.1679,25669.0,25668.0,0.3305]
[1693588780940,0.1579,25669.0,25668.0,0.0305]
[1693588781142,0.2049,25669.0,25668.0,0.306]
[1693588781343,0.2049,25669.0,25668.0,0.006]
[1693588781546,0.59198678,25669.0,25668.0,0.006]
[1693588781961,0.82788578,25669.0,25668.0,0.006]
[1693588782433,0.440799,25669.0,25668.0,0.006]
[1693588782590,0.2049,25669.0,25668.0,0.006]
[1693588784428,0.59198678,25669.0,25668.0,0.006]
[1693588784623,0.59198678,25669.0,25668.0,2.3e-07]
[1693588784624,0.63198678,25669.0,25668.0,2.3e-07]
[1693588785296,0.87575904,25669.0,25668.0,2.3e-07]
[1693588785603,0.44867226,25669.0,25668.0,2.3e-07]
[1693588786337,0.48867226,25669.0,25668.0,2.3e-07]
[1693588786983,0.44867226,25669.0,25668.0,2.3e-07]
[1693588787474,0.2049,25669.0,25668.0,2.3e-07]
[1693588787903,0.2049,25669.0,25668.0,0.30000023]
[1693588788105,0.2049,25669.0,25668.0,0.34621025]
[1693588788559,0.047,25669.0,25668.0,0.34621025]
[1693588789145,0.045195,25669.0,25668.0,0.73329703]
[1693588789960,0.035195,25669.0,25668.0,0.7332968]
[1693588790302,0.035195,25669.0,25668.0,0.7342968]
[1693588790303,0.047195,25669.0,25668.0,0.7342968]
[1693588790438,0.012,25669.0,25668.0,0.7342968]
[1693588790639,0.013,25669.0,25668.0,0.7462968]
[1693588792067,0.001,25669.0,25668.0,0.7452968]
[1693588792479,0.002,25669.0,25668.0,0.7642968]
[1693588794247,0.002,25669.0,25668.0,0.37721002]
[1693588795080,0.002,25669.0,25668.0,0.07721002]
[1693588795484,0.1153,25673.0,25668.0,0.07721002]
[1693588795695,0.1153,25673.0,25669.0,0.19255571]
[1693588796525,0.1153,25673.0,25669.0,0.037721]
[1693588796734,0.1613,25673.0,25669.0,0.337721]
[1693588796941,0.1613,25673.0,25669.0,0.037721]
[1693588797144,0.1263,25673.0,25669.0,0.037721]
[1693588797349,0.1613,25673.0,25669.0,0.040721]
[1693588797764,0.1503,25673.0,25669.0,0.040721]
[1693588797977,0.72671805,25672.0,25669.0,0.040721]
[1693588798185,0.38708678,25672.0,25669.0,0.040721]
[1693588798398,0.24373354,25671.0,25669.0,0.003]
[1693588799012,0.24373354,25671.0,25669.0,0.006]
[1693588799013,0.38708678,25670.0,25669.0,0.006]
[1693588799128,0.63082032,25670.0,25669.0,0.003]
[1693588799530,0.63082032,25670.0,25664.0,0.3]
[1693588799749,0.09590814,25669.0,25664.0,0.3]
[1693588799952,0.09590814,25669.0,25665.0,0.05182]
[1693588800158,0.38708678,25670.0,25665.0,0.05182]
[1693588800385,0.2437448,25669.0,25665.0,0.05182]
[1693588800732,0.38708678,25668.0,25665.0,0.05182]
[1693588801009,0.24376504,25667.0,25665.0,0.05182]
[1693588801161,0.24376504,25667.0,25664.0,0.037]
[1693588801162,0.38708678,25666.0,25664.0,0.037]
[1693588801340,0.1621,25665.0,25664.0,0.037]
[1693588801744,0.24378891,25665.0,25664.0,0.037]
[1693588801951,0.63087569,25665.0,25655.0,0.4006]
[1693588802171,0.48299492,25664.0,25656.0,0.04206]
[1693588802374,0.48299492,25664.0,25656.0,0.43539471]
[1693588803192,0.48499492,25664.0,25657.0,0.15483471]
[1693588804235,0.64091992,25664.0,25657.0,0.15483471]
[1693588804438,0.64091992,25664.0,25658.0,0.3]
[1693588804648,0.64091992,25664.0,25659.0,0.04548347]
[1693588805046,0.1,25661.0,25655.0,0.03066109]
[1693588805258,0.04,25658.0,25657.0,0.013]
[1693588805478,0.04,25658.0,25650.0,0.1]
[1693588805479,0.12,25655.0,25650.0,0.1]
[1693588805681,0.48299492,25654.0,25650.0,0.1]
[1693588806693,0.38708678,25654.0,25650.0,0.1]
[1693588806908,0.56907878,25654.0,25650.0,0.102]
[1693588807211,0.181992,25654.0,25650.0,0.25683471]
[1693588807327,0.026,25654.0,25651.0,0.48051818]
[1693588807529,0.026,25654.0,25652.0,0.54918678]
[1693588807736,0.022888,25654.0,25653.0,0.45483471]
[1693588807941,0.022888,25654.0,25653.0,0.68708678]
[1693588808321,0.001,25655.0,25653.0,0.84064591]
[1693588808525,1.5888,25663.0,25654.0,0.54918678]
[1693588808728,1.97588678,25663.0,25656.0,0.1621]
[1693588808937,0.38708678,25663.0,25657.0,0.68073471]
[1693588809161,0.1949,25665.0,25657.0,0.68073471]
[1693588809372,0.38708678,25665.0,25659.0,0.1621]
[1693588809581,0.38708678,25665.0,25660.0,0.45483471]
[1693588809996,0.037,25663.0,25660.0,0.45483471]
[1693588810210,0.074,25663.0,25660.0,0.3]
[1693588810621,0.074,25663.0,25658.0,0.38428347]
[1693588810827,0.074,25663.0,25659.0,0.07782835]
[1693588810828,0.48299492,25662.0,25659.0,0.07782835]
[1693588811048,0.38708678,25662.0,25657.0,0.006]
[1693588811253,0.48299492,25662.0,25657.0,0.003]
[1693588811465,0.63893392,25662.0,25654.0,0.5259]
[1693588811683,0.63893392,25662.0,25660.0,0.003]
[1693588811684,0.09590814,25661.0,25660.0,0.003]
[1693588811890,0.38708678,25661.0,25660.0,0.003]
[1693588812097,0.38708678,25661.0,25657.0,0.001]
[1693588812548,0.183939,25662.0,25657.0,0.15683471]
[1693588812770,0.028,25662.0,25658.0,0.3]
[1693588812994,0.02,25667.0,25659.0,0.04568347]
[1693588813206,0.002,25662.0,25659.0,0.58760496]
[1693588813453,0.002,25662.0,25660.0,0.5209]
[1693588814939,0.025,25662.0,25660.0,0.5209]
[1693588815143,0.041,25662.0,25661.0,0.05665835]
[1693588815364,0.178,25668.0,25661.0,0.05665835]
[1693588815584,0.158,25668.0,25662.0,0.15483471]
[1693588815810,0.158,25668.0,25663.0,0.3]
[1693588816061,0.158,25668.0,25664.0,0.15483471]
[1693588816273,1.5888,25669.0,25665.0,0.34548347]
[1693588816499,1.5888,25669.0,25666.0,0.15483471]
[1693588816712,1.5888,25669.0,25667.0,0.3]
[1693588816918,0.037,25668.0,25667.0,0.3]
[1693588817763,0.037,25668.0,25665.0,0.04548347]
[1693588817980,0.07,25668.0,25666.0,0.03454835]
[1693588818194,0.033,25668.0,25666.0,0.03454835]
[1693588818399,0.037,25669.0,25666.0,0.03454835]
[1693588818637,0.1665,25672.0,25666.0,0.03454835]
[1693588818861,0.033,25668.0,25667.0,0.15783471]
[1693588819070,0.05,25668.0,25667.0,0.32678665]
[1693588819291,0.033,25668.0,25667.0,0.32678665]
[1693588819714,0.037,25669.0,25667.0,0.32378665]
[1693588819944,0.55358678,25672.0,25667.0,0.32378665]
[1693588820153,0.037,25668.0,25667.0,0.18162136]
[1693588820363,0.037,25668.0,25667.0,0.32678665]
[1693588821807,0.033,25668.0,25667.0,0.32678665]
[1693588822207,0.033,25668.0,25667.0,0.32978665]
[1693588822430,0.033,25668.0,25667.0,0.32678665]
[1693588822630,0.033,25668.0,25667.0,0.32978665]
[1693588822631,0.07,25668.0,25667.0,0.32978665]
[1693588823227,0.07,25668.0,25667.0,0.02978665]
[1693588824302,0.07,25668.0,25667.0,0.006]
[1693588824303,0.16590814,25668.0,25667.0,0.006]
[1693588824512,0.45708678,25668.0,25667.0,0.006]
[1693588824682,0.69299492,25668.0,25667.0,0.006]
[1693588824905,1.19375727,25668.0,25667.0,0.006]
[1693588825238,1.19375727,25668.0,25655.0,0.2276]
[1693588825239,0.04,25664.0,25655.0,0.2276]
[1693588825450,0.48299492,25663.0,25656.0,0.02276]
[1693588825653,0.48299492,25663.0,25653.0,0.2276]
[1693588826061,0.1571,25662.0,25653.0,0.38243471]
[1693588826308,0.48299492,25661.0,25653.0,0.38243471]
[1693588826699,0.1571,25660.0,25653.0,0.38243471]
[1693588826836,0.09590814,25659.0,25653.0,0.38543471]
[1693588827036,0.09590814,25659.0,25654.0,0.04368756]
[1693588827241,0.1571,25660.0,25654.0,0.19852227]
[1693588827450,0.178943,25663.0,25655.0,0.54192149]
[1693588827667,0.1759,25663.0,25655.0,0.78512149]
[1693588827879,0.30880814,25663.0,25656.0,0.003]
[1693588828084,0.67289492,25663.0,25656.0,0.54489395]
[1693588828287,0.001,25661.0,25657.0,0.15483471]
[1693588828502,0.1899,25663.0,25658.0,0.5432]
[1693588828708,0.037,25663.0,25659.0,0.15483471]
[1693588828923,0.073,25663.0,25661.0,0.2432]
[1693588829136,0.00599977,25666.0,25662.0,0.35432]
[1693588829341,0.00599977,25666.0,25664.0,0.2432]
[1693588829596,0.00599977,25666.0,25665.0,0.3]
[1693588831872,0.03999977,25666.0,25665.0,0.303]
[1693588832088,0.03999977,25666.0,25665.0,0.003]
[1693588832290,0.07599977,25666.0,25665.0,0.006]
[1693588832510,0.00599977,25666.0,25663.0,0.3]
[1693588832684,0.00599977,25666.0,25664.0,0.059752]
[1693588832889,0.00999977,25666.0,25665.0,0.03]
[1693588833733,0.00553277,25666.0,25665.0,0.68708678]
[1693588834085,0.00853277,25666.0,25665.0,0.72408678]
[1693588834295,0.00853277,25666.0,25665.0,0.83354066]
[1693588834500,0.00543977,25666.0,25665.0,0.79654066]
[1693588834660,0.00543977,25666.0,25665.0,0.81648477]
[1693588834853,0.00843977,25666.0,25665.0,0.85348477]
[1693588835055,0.00843977,25666.0,25665.0,1.04806477]
[1693588835281,0.00843977,25666.0,25665.0,0.93648477]
[1693588835493,0.00843977,25666.0,25665.0,0.40945388]
[1693588835686,0.00843977,25666.0,25665.0,0.44645388]
[1693588835888,0.01243977,25666.0,25665.0,0.47645388]
[1693588836087,0.01243977,25666.0,25665.0,0.56354066]
[1693588836314,0.00843977,25666.0,25665.0,0.53354066]
[1693588836534,0.01243977,25666.0,25665.0,0.56354066]
[1693588836708,0.01243977,25666.0,25665.0,0.53354066]
[1693588836904,0.00843977,25666.0,25665.0,0.53354066]
[1693588837105,0.01243977,25666.0,25665.0,0.56354066]
[1693588837518,0.00943977,25666.0,25665.0,0.82654066]
[1693588837707,0.004,25666.0,25665.0,0.82654066]
[1693588837949,0.007,25666.0,25665.0,0.86354066]
[1693588838363,0.004,25666.0,25665.0,0.97998477]
[1693588838568,0.004,25666.0,25665.0,0.99902477]
[1693588838770,0.007,25666.0,25665.0,0.92348477]
[1693588839007,0.007,25666.0,25665.0,0.86354066]
[1693588839207,0.007,25666.0,25665.0,0.92348477]
[1693588840271,0.007,25666.0,25665.0,0.86354066]
[1693588840479,0.007,25666.0,25665.0,0.92348477]
[1693588840884,1.141465,25674.0,25672.0,0.03994411]
[1693588840885,0.9856,25674.0,25672.0,0.03994411]
[1693588841121,0.0195,25676.0,25673.0,0.15483471]
[1693588841321,0.0195,25676.0,25674.0,0.34947788]
[1693588841531,0.0195,25676.0,25675.0,0.15483471]
[1693588841738,0.0195,25676.0,25675.0,0.3]
[1693588842176,0.0555,25676.0,25675.0,0.3]
[1693588842600,0.0195,25676.0,25675.0,0.3]
[1693588842835,0.0555,25676.0,25675.0,0.06226779]
[1693588843075,0.0555,25676.0,25675.0,0.36226779]
[1693588843704,0.0195,25676.0,25675.0,0.35926779]
[1693588843913,0.0585,25676.0,25675.0,0.38026779]
[1693588844555,0.0215,25676.0,25675.0,0.37726779]
[1693588844727,0.0545,25676.0,25675.0,0.38026779]
[1693588845195,0.0545,25676.0,25675.0,0.08026779]
[1693588845397,0.0545,25676.0,25675.0,0.021]
[1693588845672,0.0525,25676.0,25675.0,0.003]
[1693588845870,0.0615,25676.0,25675.0,0.004]
[1693588846074,0.0525,25676.0,25675.0,0.63328678]
[1693588846282,0.0525,25676.0,25675.0,0.93328678]
[1693588846513,0.0885,25676.0,25675.0,1.08289987]
[1693588846719,0.0885,25676.0,25675.0,0.45261309]
[1693588846921,0.0885,25676.0,25675.0,0.306]
[1693588847308,0.0885,25676.0,25675.0,0.006]
[1693588847681,0.0885,25676.0,25675.0,0.39308678]
[1693588847880,0.0885,25676.0,25675.0,0.69308678]
[1693588849270,0.0885,25676.0,25675.0,0.306]
[1693588849475,0.0885,25676.0,25675.0,0.35059441]
[1693588849679,0.0885,25676.0,25675.0,0.73768119]
[1693588850097,0.0885,25676.0,25675.0,1.05882119]
[1693588850314,0.0885,25676.0,25675.0,1.06008119]
[1693588850463,0.0885,25676.0,25675.0,1.05996119]
[1693588850692,0.0885,25676.0,25675.0,1.2385853]
[1693588850891,0.0196,25681.0,25679.0,0.05994411]
[1693588851103,0.0195,25682.0,25680.0,0.78512149]
[1693588851104,0.01882399,25682.0,25680.0,0.78512149]
[1693588851312,0.01882399,25682.0,25681.0,0.3]
[1693588851539,0.01882399,25682.0,25681.0,1.1082056]
[1693588851749,0.01203677,25682.0,25681.0,0.95829089]
[1693588851954,0.01203677,25682.0,25681.0,1.13296998]
[1693588852158,0.01203677,25682.0,25681.0,1.14990998]
[1693588852364,0.01203677,25682.0,25681.0,1.14402998]
[1693588852561,0.01203677,25682.0,25681.0,1.13424998]
[1693588852812,0.01203677,25682.0,25681.0,1.13244998]
[1693588853015,0.01203677,25682.0,25681.0,1.13106998]
[1693588853314,0.01203677,25682.0,25681.0,1.16058998]
[1693588853523,0.01203677,25682.0,25681.0,1.15278998]
[1693588853728,0.01203677,25682.0,25681.0,1.15038998]
[1693588853935,0.01203677,25682.0,25681.0,1.14342998]
[1693588854342,0.0032808,25682.0,25681.0,1.13214998]
[1693588854551,0.0062808,25682.0,25681.0,1.17568998]
[1693588854753,0.0062808,25682.0,25681.0,1.74294998]
[1693588854959,0.0092808,25682.0,25681.0,1.78222998]
[1693588855163,0.0195,25686.0,25684.0,0.02]
[1693588855381,0.0195,25686.0,25685.0,0.38708678]
[1693588855593,0.0195,25686.0,25685.0,0.77900678]
[1693588855815,0.0195,25686.0,25685.0,0.77252678]
[1693588856024,0.0195,25686.0,25685.0,0.68708678]
[1693588856229,0.0195,25686.0,25685.0,0.79873387]
[1693588856438,0.0225,25686.0,25685.0,0.87229387]
[1693588856642,0.0225,25686.0,25685.0,0.86677387]
[1693588856864,0.0225,25686.0,25685.0,0.79873387]
[1693588857109,0.0225,25686.0,25685.0,0.90243387]
[1693588857313,0.0074607,25686.0,25685.0,1.08589798]
[1693588857548,0.0074607,25686.0,25685.0,1.10023798]
[1693588857759,0.0074607,25686.0,25685.0,1.13513798]
[1693588857967,0.0104607,25686.0,25685.0,1.17897798]
[1693588858178,0.0104607,25686.0,25685.0,1.16223798]
[1693588858385,0.0104607,25686.0,25685.0,1.15647798]
[1693588858591,0.0104607,25686.0,25685.0,1.16841798]
[1693588858801,0.0074607,25686.0,25685.0,1.72161798]
[1693588859014,0.0044607,25686.0,25685.0,1.74944134]
[1693588859230,0.007555,25693.0,25690.0,0.02]
[1693588859440,1.0051,25694.0,25691.0,0.54192149]
[1693588859640,1.0051,25694.0,25692.0,0.59939215]
[1693588859842,0.0195,25694.0,25693.0,0.38708678]
[1693588860057,0.0195,25694.0,25693.0,0.68708678]
[1693588860262,0.0195,25694.0,25693.0,0.70708678]
[1693588860881,0.0195,25694.0,25693.0,0.3]
[1693588861087,0.0195,25694.0,25693.0,0.03961922]
[1693588861296,0.0195,25694.0,25693.0,0.05961922]
[1693588861709,0.0215,25694.0,25693.0,0.520706]
[1693588861916,0.0215,25694.0,25693.0,0.483706]
[1693588862123,0.0195,25694.0,25693.0,0.784706]
[1693588862567,0.0215,25694.0,25693.0,0.821706]
[1693588862765,0.0215,25694.0,25693.0,0.41461922]
[1693588863784,0.0195,25694.0,25693.0,0.37761922]
[1693588863991,0.0195,25694.0,25693.0,0.07761922]
[1693588864194,0.0215,25694.0,25693.0,0.41461922]
[1693588864401,0.0215,25694.0,25693.0,0.37661922]
[1693588864603,0.0195,25694.0,25693.0,0.33961922]
[1693588864815,0.0215,25694.0,25693.0,0.41361922]
[1693588865012,0.0215,25694.0,25693.0,0.37661922]
[1693588865219,0.0215,25694.0,25693.0,0.07661922]
[1693588865421,0.0215,25694.0,25693.0,0.11461922]
[1693588865630,0.0215,25694.0,25693.0,0.41461922]
[1693588868822,0.0215,25694.0,25693.0,0.11461922]
[1693588869033,0.74619492,25694.0,25693.0,0.075]
[1693588869285,0.74619492,25694.0,25693.0,2.85e-06]
[1693588869286,0.67028678,25694.0,25693.0,2.85e-06]
[1693588869508,0.73028678,25694.0,25693.0,2.85e-06]
[1693588869723,0.73028678,25694.0,25681.0,0.02]
[1693588869724,0.02,25690.0,25681.0,0.02]
[1693588869927,0.02,25690.0,25682.0,0.40708678]
[1693588869928,0.09590814,25689.0,25682.0,0.40708678]
[1693588870134,0.26020814,25689.0,25682.0,0.40708678]
[1693588870571,0.26020814,25689.0,25682.0,0.38708678]
[1693588870784,0.02,25688.0,25682.0,0.38708678]
[1693588870992,0.09590814,25687.0,25682.0,0.38708678]
[1693588871204,0.386,25689.0,25682.0,0.38708678]
[1693588871205,0.1643,25689.0,25684.0,0.1617]
[1693588871410,0.1643,25689.0,25685.0,0.54192149]
[1693588871836,0.1683,25689.0,25685.0,0.54192149]
[1693588872061,0.1683,25689.0,25686.0,0.3]
[1693588872267,0.1713,25689.0,25687.0,0.06870868]
[1693588872999,0.1673,25689.0,25687.0,0.06870868]
[1693588873195,0.1713,25689.0,25687.0,0.06870868]
[1693588873482,0.1683,25689.0,25687.0,0.06870868]
[1693588873855,0.004,25689.0,25688.0,0.38708678]
[1693588874005,0.0195,25694.0,25688.0,1.06029749]
[1693588874211,0.0195,25694.0,25691.0,0.1617]
[1693588874431,0.0195,25694.0,25692.0,0.3]
[1693588875447,0.0225,25694.0,25692.0,0.337]
[1693588875648,0.0225,25694.0,25692.0,0.72408678]
[1693588875858,0.0225,25694.0,25693.0,0.63736546]
[1693588876017,0.0225,25694.0,25693.0,0.97614882]
[1693588876709,0.0195,25694.0,25693.0,0.97614882]
[1693588876917,0.0225,25694.0,25693.0,0.97614882]
[1693588877090,0.0255,25694.0,25693.0,1.01314882]
[1693588877290,0.0225,25694.0,25693.0,0.85144882]
[1693588877667,0.0255,25694.0,25693.0,0.88844882]
[1693588877878,0.0255,25694.0,25693.0,0.84966546]
[1693588879005,0.0255,25694.0,25693.0,0.86966546]
[1693588881050,0.02232297,25694.0,25693.0,0.86966546]
[1693588882427,0.01732297,25694.0,25693.0,0.86966546]
[1693588883906,0.01732297,25694.0,25693.0,0.84966546]
[1693588884770,0.01732297,25694.0,25693.0,0.46257868]
[1693588884979,0.01732297,25694.0,25693.0,0.374]
[1693588885201,0.01732297,25694.0,25693.0,0.074]
[1693588885426,0.26085769,25694.0,25693.0,0.074]
[1693588885626,0.34085769,25694.0,25693.0,0.074]
[1693588886662,0.33785769,25694.0,25693.0,0.037]
[1693588887087,0.72494447,25694.0,25693.0,0.037]
[1693588887286,0.76494447,25694.0,25693.0,0.074]
[1693588887915,0.08,25693.0,25686.0,0.3]
[1693588888119,0.09590814,25692.0,25687.0,0.03512871]
[1693588888722,0.25140814,25692.0,25687.0,0.03512871]
[1693588890099,0.08,25690.0,25682.0,0.037]